[Event "4NCL 2nd Div 2023-24"]
[Site "Daventry"]
[Date "2024.05.06"]
[Round "11.17"]
[White "Graham, David B"]
[Black "Larkin, Vladyslav"]
[Result "0-1"]
[ECO "B06"]
[WhiteElo "2149"]
[BlackElo "2445"]
[Annotator "TA"]
[PlyCount "92"]
[EventDate "2023.11.11"]
[EventType "team-tourn"]
[EventCountry "ENG"]
[SourceTitle "playchess.com"]
[Source "ChessBase"]
[SourceQuality "1"]
[TimeControl "40/6000+30:3000+30"]

{[%evp 9,92,42,56,24,28,27,26,20,37,30,47,11,14,3,39,30,31,41,36,40,35,35,36,8,8,12,19,27,14,21,27,14,22,0,4,0,43,-33,-30,-39,-20,-31,-24,-33,-19,-5,0,-15,-8,-8,-15,-113,-98,-131,-123,-165,-162,-299,-231,-220,-229,-218,-218,-252,-252,-405,-372,-405,-393,-357,-372,-494,-485,-655,-660,-607,-623,-1239,-1625,-1700,-1762,-29986,-29987,-29986,-29987]} 1. e4 {[%emt 0:00:02]} d6 {[%emt 0:00:09]} 2. d4 {[%emt 0:00:20]} Nf6 {[%emt 0:00:05]} 3. Nc3 {[%emt 0:00:11]} c6 {[%emt 0:00:11]} 4. a4 {[%emt 0:00:43]} g6 {[%emt 0:00:21]} 5. Nf3 {[%emt 0:00:18]} Bg7 {[%emt 0:00:13]} 6. g3 {[%emt 0:00:20]} O-O {[%emt 0:00:16]} 7. Bg2 {[%emt 0:00:04]} a5 {[%emt 0:00:15]} 8. O-O {[%emt 0:00:13] White has an edge.} Na6 {[%emt 0:00:32]} 9. Re1 {[%emt 0:04:59]} Nb4 {[%emt 0:00:55][%cal Oe7e5]} 10. Bg5 {[%emt 0:04:14]} h6 {[%emt 0:01:22]} 11. Bf4 {[%emt 0:04:56]} Bg4 {[%emt 0:02:06]} 12. h3 {[%emt 0:10:47]} Bxf3 {[%emt 0:01:45]} 13. Bxf3 {[%emt 0:00:06]} Nd7 {[%emt 0:00:35]} 14. Ne2 {[%emt 0:03:50]} e5 {[%emt 0:01:57]} 15. Be3 {[%emt 0:08:34]} exd4 {[%emt 0:02:46]} 16. Bxd4 {[%emt 0:01:18]} Bxd4 {[%emt 0:08:34]} 17. Nxd4 {[%emt 0:00:13]} Qf6 {[%emt 0:03:09]} 18. c3 {[%emt 0:02:07]} Na6 {[%emt 0:00:05]} 19. Bg2 {[%emt 0:01:18]} Nac5 {[%emt 0:06:55]} 20. Qc2 {[%emt 0:05:17]} Rfe8 {[%emt 0:00:54]} 21. Rad1 {[%emt 0:02:24]} h5 {[%emt 0:03:24]} 22. Nf3 {[%emt 0:03:39]} Ne5 {[%emt 0:05:59]} 23. Nxe5 {[%emt 0:02:51]} ({Better is} 23. Nh4 $1 $14) 23... dxe5 $15 {[%emt 0:00:14]} 24. Bf1 {[%emt 0:10:21]} h4 {[%emt 0:07:08]} 25. Kg2 {[%emt 0:02:25]} Qe6 {[%emt 0:04:05]} 26. b4 {[%emt 0:16:15]} axb4 {[%emt 0:00:12]} 27. cxb4 {[%emt 0:00:03]} Nxa4 {[%emt 0:00:24]} 28. Bc4 {[%emt 0:12:04]} Qe7 {[%emt 0:00:15]} 29. Bb3 {[%emt 0:00:47]} Nb6 {[%emt 0:00:50]} (29... Qxb4 $6 30. Rb1 Kg7 31. Bxf7 $14 (31. gxh4 Red8 $11)) 30. Qc5 {[%emt 0:07:47] [#]} (30. gxh4 $11 {remains equal.} Nd7 (30... Qxb4 31. h5 $11) (30... Qxh4 31. Qc5 $11) 31. h5) 30... Nd7 $1 $17 {[%emt 0:00:30] Black continues to play with concentration.} 31. Qd6 {[%emt 0:00:44] [#]} Nf6 $1 {[%emt 0:00:29]} 32. Re3 {[%emt 0:00:28]} Kg7 {[%emt 0:01:25][%cal Of6d5]} 33. Bc4 {[%emt 0:03:33]} (33. Qxe7 $142 Rxe7 34. gxh4) 33... Qxd6 {[%emt 0:04:11]} 34. Rxd6 {[%emt 0:00:04]} Re7 {[%emt 0:00:52]} 35. b5 {[%emt 0:00:48]} Ra4 {[%emt 0:03:01]} 36. Bb3 {[%emt 0:00:13]} Rd4 {[%emt 0:00:19]} (36... Nxe4 37. Rxg6+ fxg6 (37... Kxg6 38. Bxa4 Nc5 39. Bc2+ Kg7 40. bxc6 $11) 38. Bxa4 $11) 37. Rd3 $2 {[%emt 0:00:59]} (37. Rxd4 exd4 38. Re1) 37... Rxd6 $19 {[%emt 0:00:07]} ({Weaker is} 37... Nxe4 38. R6xd4 exd4 39. Rxd4 $17) (37... Rxe4 $2 38. bxc6 bxc6 39. Rxc6 $19) (37... cxb5 38. R3xd4 exd4 39. f3 $17) 38. Rxd6 {[%emt 0:00:04]} Nxe4 {[%emt 0:00:05][%mdl 4096] Endgame. KRB-KRN} ({Don't play} 38... cxb5 39. Bd5 $19) 39. Rd8 {[%emt 0:00:45]} cxb5 {[%emt 0:00:45]} 40. Rd5 {[%emt 0:00:29]} hxg3 {[%emt 0:00:26]} 41. fxg3 {[%emt 0:50:34]} Nc3 {[%emt 0:50:56]} 42. Rc5 {[%emt 0:00:05]} b4 {[%emt 0:01:00] Hoping for ...e4.} 43. Rc4 {[%emt 0:00:06]} e4 {[%emt 0:00:31] And now ...e3 would win.} 44. Rxb4 {[%emt 0:00:06]} e3 {[%emt 0:00:18] ( -> ...e2)} 45. Kf1 {[%emt 0:00:12]} e2+ {[%emt 0:00:18]} 46. Ke1 {[%emt 0:00:04]} Rd7 {[%emt 0:00:02] Weighted Error Value: White=0.55/Black=0.07 (flawless) .  Mistake:       	White=4     	---        Inaccurate:     	White=6     	Black=2      OK:         	White=13    	Black=16     Best:        	---       	Black=2      Strong:       	---       	Black=2} 0-1

[Event "4NCL 2nd Div 2023-24"]
[Site "Daventry"]
[Date "2024.05.06"]
[Round "11.18"]
[White "Maycock Bates, David Henry"]
[Black "Grant, David J"]
[Result "1-0"]
[ECO "B78"]
[WhiteElo "2266"]
[BlackElo "2103"]
[Annotator "TA"]
[PlyCount "57"]
[EventDate "2023.11.11"]
[EventType "team-tourn"]
[EventCountry "ENG"]
[SourceTitle "playchess.com"]
[Source "ChessBase"]
[SourceQuality "1"]
[TimeControl "40/6000+30:3000+30"]

{[%evp 27,57,55,49,0,0,0,37,43,18,31,34,41,114,110,603,565,744,645,673,653,681,553,624,581,624,589,29981,29982,29988,29989,29992,29993]} 1. e4 {[%emt 0:11:45]} c5 {[%emt 0:00:26]} 2. Nf3 {[%emt 0:00:14]} d6 {[%emt 0:00:12]} 3. d4 {[%emt 0:00:07]} Nf6 {[%emt 0:00:25]} 4. Nc3 {[%emt 0:00:16]} cxd4 {[%emt 0:00:13]} 5. Nxd4 {[%emt 0:00:22]} g6 {[%emt 0:00:46]} 6. Be3 {[%emt 0:00:29]} Bg7 {[%emt 0:00:08]} 7. f3 {[%emt 0:08:10]} Nc6 {[%emt 0:00:45]} 8. Bc4 {[%emt 0:13:28]} O-O {[%emt 0:02:33]} 9. Qd2 {[%emt 0:04:23]} Bd7 {[%emt 0:00:26]} 10. O-O-O {[%emt 0:03:50]} Rb8 {[%emt 0:01:19]} 11. h4 {[%emt 0:02:45]} b5 {[%emt 0:03:01]} 12. Bb3 {[%emt 0:11:13]} Na5 {[%emt 0:08:31]} 13. h5 {[%emt 0:03:20]} Nc4 {[%emt 0:00:16]} 14. Bxc4 {[%emt 0:03:23]} bxc4 {[%emt 0:00:34]} 15. Bh6 {[%emt 0:06:39]} (15. Kb1 $14) 15... Qb6 $11 {[%emt 0:05:13]} (15... gxh5 $2 16. Qg5 Ne8 17. Qxh5 $18 (17. Bxg7 Nxg7 18. Rxh5 f6 $18)) 16. b3 {[%emt 0:00:54]} cxb3 {[%emt 0:03:00]} 17. cxb3 {[%emt 0:00:14] Strongly threatening Bxg7. White is slightly better.} Bxh6 {[%emt 0:10:13]} (17... Nxh5 $2 18. Nd5 Qxd4 19. Qxd4 (19. Nxe7+ Kh8 $18) 19... Bxd4 20. Bxf8 (20. Nxe7+ Kh8 $16) 20... Kxf8 21. Rxd4 $18) 18. Qxh6 {[%emt 0:01:25]} Rbc8 {[%emt 0:24:54]} (18... gxh5 $2 19. Nd5 Qc5+ 20. Kb2 $18) 19. Kb2 {[%emt 0:01:50] Black must now prevent hxg6.} Qc5 {[%emt 0:02:21]} (19... gxh5 $2 {too greedy.} 20. Nd5 Rfe8 21. Nxb6 $18) (19... Qa5 $14 20. Nde2 g5) 20. Rd3 $1 $40 {[%emt 0:06:44][%mdl 128] Black is in trouble.} e6 $2 {[%emt 0:05:26][%mdl 8192] This move loses the game for Black.} (20... g5 $16) 21. g4 $18 {[%emt 0:07:20][%cal Od4f5,Bg2g4,Bg4g5][%mdl 32] Nf5! would now be deadly. Active counter play!} Rc7 {[%emt 0:01:48] [#]} 22. e5 $1 {[%emt 0:13:36][%mdl 512]} Qxe5 {[%emt 0:06:12][%cal Oc7c3]} 23. hxg6 $1 {[%emt 0:00:23]} fxg6 {[%emt 0:02:00] [#]} 24. f4 $1 {[%emt 0:00:10]} Qa5 {[%emt 0:01:08][%cal Oe6e5] [#]} 25. g5 $1 {[%emt 0:00:12]} Nh5 {[%emt 0:00:41]} 26. Rxh5 $1 {[%emt 0:00:39]} gxh5 {[%emt 0:00:10]} 27. g6 {[%emt 0:00:04][%csl Gg6][%cal Rh6h7] Prevents Rf7. White mates.} Bc8 {[%emt 0:01:42]} 28. gxh7+ {[%emt 0:00:11]} Rxh7 {[%emt 0:00:21]} 29. Rg3+ {[%emt 0:00:06] Weighted Error Value: White=0.13 (very precise) /Black=0.80.  Loses game:     	---       	Black=1      Mistake:       	---       	Black=1      Inaccurate:     	---       	Black=3      OK:         	White=2     	Black=2      Best:        	White=1     	Black=1      Strong:       	White=1     	---} 1-0

[Event "4NCL 2nd Div 2023-24"]
[Site "Daventry"]
[Date "2024.05.06"]
[Round "11.19"]
[White "Brewer, Callum D"]
[Black "Bezuidenhout, Roland"]
[Result "1/2-1/2"]
[ECO "B30"]
[WhiteElo "2155"]
[BlackElo "2254"]
[Annotator "TA"]
[PlyCount "79"]
[EventDate "2023.11.11"]
[EventType "team-tourn"]
[EventCountry "ENG"]
[SourceTitle "playchess.com"]
[Source "ChessBase"]
[SourceQuality "1"]
[TimeControl "40/6000+30:3000+30"]

{[%evp 11,79,42,36,31,39,37,35,35,24,21,31,2,14,41,41,8,10,11,11,0,22,16,22,19,12,21,19,7,15,8,33,18,33,19,14,8,20,23,106,120,261,271,249,252,260,184,203,170,170,170,170,170,170,170,170,233,219,163,163,0,0,0,0,0,7,0,8,8,14,0]} 1. e4 {[%emt 0:00:02]} c5 {[%emt 0:01:05]} 2. Nf3 {[%emt 0:00:08]} Nc6 {[%emt 0:00:07]} 3. Bb5 {[%emt 0:00:02]} Nf6 {[%emt 0:01:22]} 4. Nc3 {[%emt 0:01:19]} g6 {[%emt 0:00:59]} 5. e5 {[%emt 0:01:39]} Ng4 {[%emt 0:00:08]} 6. Bxc6 {[%emt 0:00:21]} dxc6 {[%emt 0:00:02]} 7. h3 {[%emt 0:01:42]} Nh6 {[%emt 0:00:03]} 8. Ne4 {[%emt 0:00:03]} b6 {[%emt 0:05:00]} 9. a4 {[%emt 0:03:49][%cal Oa4a5] White is slightly better.} a5 {[%emt 0:00:22]} 10. O-O {[%emt 0:02:47]} Bg7 {[%emt 0:00:25]} 11. d3 {[%emt 0:05:15]} O-O {[%emt 0:01:47]} 12. Re1 {[%emt 0:06:25]} Nf5 {[%emt 0:03:09]} 13. Bf4 {[%emt 0:16:38]} Nd4 {[%emt 0:00:53]} 14. Nxd4 {[%emt 0:07:25]} cxd4 {[%emt 0:00:10]} 15. Qd2 {[%emt 0:02:19]} c5 {[%emt 0:00:23]} 16. Bh6 {[%emt 0:03:59]} Bb7 {[%emt 0:00:46]} 17. Qf4 {[%emt 0:06:45]} Qd5 {[%emt 0:02:55] White is weak on the light squares} 18. Bxg7 {[%emt 0:13:13]} Kxg7 {[%emt 0:00:03]} 19. b3 {[%emt 0:01:05]} Rac8 {[%emt 0:08:32]} 20. Qg3 {[%emt 0:07:08]} Rc6 {[%emt 0:01:21]} 21. f4 {[%emt 0:04:16][%cal Bf2f4,Bf4f5][%mdl 32]} f6 {[%emt 0:01:25]} 22. exf6+ {[%emt 0:08:30]} exf6 {[%emt 0:00:38]} 23. Re2 {[%emt 0:00:02]} Re6 {[%emt 0:14:28]} 24. f5 {[%emt 0:03:14]} Ree8 {[%emt 0:00:07]} (24... Qxf5 25. Nd6 Rxd6 26. Qxd6 $18) (24... Re5 $1 $11) 25. Rae1 $36 {[%emt 0:01:10][%cal Oe4f6][%mdl 2048] [#] Nxf6! is the strong threat. White has strong initiative. Black is more active.} Qd8 {[%emt 0:12:10]} (25... Qe5 $16 {is a better defense.}) 26. Nd6 $18 {[%emt 0:01:32]} Rxe2 {[%emt 0:01:46]} 27. Rxe2 {[%emt 0:00:04]} Bc8 {[%emt 0:04:34]} 28. fxg6 {[%emt 0:02:39]} hxg6 {[%emt 0:00:22]} 29. Nxc8 {[%emt 0:11:29]} Qxc8 {[%emt 0:00:02][%mdl 4096] Use. KQR-KQR} 30. Qd6 {[%emt 0:00:00][%cal Oe2e6]} Re8 {[%emt 0:01:21]} 31. Re7+ {[%emt 0:00:00]} Rxe7 {[%emt 0:00:26]} 32. Qxe7+ {[%emt 0:00:00] KQ-KQ} Kg8 {[%emt 0:06:10]} 33. Qxf6 {[%emt 0:00:00]} Qe8 {[%emt 0:00:07]} 34. h4 {[%emt 0:00:00][%cal Og1f1]} ({Not} 34. Qxb6 Qe3+ 35. Kh2 Qf4+ (35... Qe5+ 36. Kh1 $11) 36. Kh1 Qf1+ 37. Kh2 Qf4+ 38. Kg1 Qe3+ 39. Kh2 Qf4+ $11 (39... Qe5+ 40. Kg1 $11)) 34... Kh7 {[%emt 0:01:03]} 35. Kh2 $2 {[%emt 0:00:00] [#]} ({Inferior is} 35. Qxb6 Qe1+ 36. Kh2 Qxh4+ 37. Kg1 Qe1+ 38. Kh2 Qe5+ 39. Kh1 Qh5+ 40. Kg1 Qd1+ 41. Kh2 Qxc2 $11 (41... Qh5+ 42. Kg3 $11)) (35. Qf2 $18) 35... Qe2 $1 $11 {[%emt 0:07:17] The position is equal.} 36. Qf7+ {[%emt 0:00:00]} Kh6 {[%emt 0:00:30]} 37. Qf6 {[%emt 0:00:00]} Kh7 {[%emt 0:00:21] Dodges Qh8+} 38. Qf7+ {[%emt 0:00:00]} Kh6 {[%emt 0:00:03]} 39. Qf8+ {[%emt 0:00:14]} Kh7 $1 {[%emt 0:00:09]} 40. Qf7+ {[%emt 0:02:29] White really could win this.   Load lights: Black=0.15 (very precise) /Average=0.14 (very precise) .  Missed win:     	Black=1     	---        Mistake:       	---       	Average=2     Inaccurate:     	Black=2     	---        Done:        	Black=12    	Average=10    OK:         	Black=1     	Average=6     Best:        	---       	Average=2} 1/2-1/2

[Event "4NCL 2nd Div 2023-24"]
[Site "Daventry"]
[Date "2024.05.06"]
[Round "11.20"]
[White "Harakis, Alexis M"]
[Black "Blake, J Morgan"]
[Result "1-0"]
[ECO "D17"]
[WhiteElo "2234"]
[BlackElo "2018"]
[Annotator "RC"]
[PlyCount "97"]
[EventDate "2023.11.11"]
[EventType "team-tourn"]
[EventCountry "ENG"]
[SourceTitle "playchess.com"]
[Source "ChessBase"]
[SourceQuality "1"]
[TimeControl "40/6000+30:3000+30"]

1. d4 {[%emt 0:08:51]} d5 {[%emt 0:00:02]} 2. c4 {[%emt 0:00:07]} c6 {[%emt 0:00:03]} 3. Nc3 {[%emt 0:00:03]} Nf6 {[%emt 0:00:07]} 4. Nf3 {[%emt 0:00:03]} dxc4 {[%emt 0:00:07]} 5. a4 {[%emt 0:00:02]} Bf5 {[%emt 0:00:08]} 6. Ne5 {[%emt 0:00:03]} Nbd7 {[%emt 0:02:53]} 7. Nxc4 {[%emt 0:00:07]} Qc7 {[%emt 0:00:23]} 8. g3 {[%emt 0:00:35]} e5 {[%emt 0:01:21]} 9. dxe5 {[%emt 0:00:05]} Nxe5 {[%emt 0:00:04]} 10. Bf4 {[%emt 0:00:07]} Nfd7 {[%emt 0:01:41]} 11. Qc1 {[%emt 0:00:22]} f6 {[%emt 0:09:32]} 12. a5 {[%emt 0:08:07]} g5 {[%emt 0:18:30]} 13. Nxe5 {[%emt 0:03:19]} Nxe5 {[%emt 0:01:34]} 14. Be3 {[%emt 0:02:05]} Bb4 {[%emt 0:11:12]} 15. a6 {[%emt 0:04:09]} bxa6 {[%emt 0:13:37]} 16. Bg2 {[%emt 0:00:55]} O-O {[%emt 0:03:35]} 17. O-O {[%emt 0:01:57]} Qc8 {[%emt 0:10:45]} 18. Ne4 {[%emt 0:04:47]} Bh3 {[%emt 0:06:32]} 19. Bd4 {[%emt 0:11:46]} Bxg2 {[%emt 0:07:06]} 20. Nxf6+ {[%emt 0:08:41]} Rxf6 {[%emt 0:01:49]} 21. Qxg5+ {[%emt 0:00:41]} Rg6 {[%emt 0:05:03]} 22. Qxe5 {[%emt 0:00:48]} Qh3 {[%emt 0:04:16]} 23. Qh8+ {[%emt 0:06:01]} Kf7 {[%emt 0:00:02]} 24. Qxa8 {[%emt 0:00:17]} Bd5 {[%emt 0:11:17]} 25. Qb7+ {[%emt 0:00:14]} Be7 {[%emt 0:00:05]} 26. f3 {[%emt 0:04:58]} Rxg3+ {[%emt 0:00:52]} 27. Kf2 {[%emt 0:01:10]} Qxh2+ {[%emt 0:00:49]} 28. Ke3 {[%emt 0:04:27]} Rg2 {[%emt 0:00:17]} 29. Rae1 {[%emt 0:02:38]} Bc4 {[%emt 0:00:41]} 30. Kd2 {[%emt 0:01:20]} Rxe2+ {[%emt 0:00:33]} 31. Kc1 {[%emt 0:00:11]} Rxe1+ {[%emt 0:00:26]} 32. Rxe1 {[%emt 0:00:04]} Qf4+ {[%emt 0:00:30]} 33. Be3 {[%emt 0:01:53]} Qh4 {[%emt 0:00:29]} 34. Bd2 {[%emt 0:01:02]} Be6 {[%emt 0:00:38]} 35. Qxc6 {[%emt 0:00:52]} Qf6 {[%emt 0:00:23]} 36. Qxa6 {[%emt 0:01:07]} Qf5 {[%emt 0:00:34]} 37. Re4 {[%emt 0:03:07]} Qc5+ {[%emt 0:00:20]} 38. Bc3 {[%emt 0:00:36]} Qg1+ {[%emt 0:00:14]} 39. Re1 {[%emt 0:00:09]} Qg5+ {[%emt 0:00:45]} 40. Kb1 {[%emt 0:00:12]} Qf5+ {[%emt 0:00:39]} 41. Ka1 {[%emt 0:50:50]} h5 {[%emt 0:13:31]} 42. Rg1 {[%emt 0:00:00]} Qd5 {[%emt 0:06:24]} 43. Qxa7 {[%emt 0:00:00]} Kf8 {[%emt 0:03:10]} 44. Qb8+ {[%emt 0:00:00]} Bd8 {[%emt 0:00:16]} 45. Qf4+ {[%emt 0:00:00]} Ke8 {[%emt 0:01:11]} 46. Qa4+ {[%emt 0:00:00]} Kf8 {[%emt 0:01:10]} 47. Rd1 {[%emt 0:00:00]} Qg5 {[%emt 0:00:35]} 48. f4 {[%emt 0:00:00]} Qh4 {[%emt 0:00:29]} 49. Qa8 {[%emt 0:00:00]} 1-0

[Event "4NCL 2nd Div 2023-24"]
[Site "Daventry"]
[Date "2024.05.06"]
[Round "11.21"]
[White "Granat, Russell G"]
[Black "Storey, Charles H"]
[Result "1-0"]
[ECO "B20"]
[WhiteElo "2160"]
[BlackElo "2150"]
[Annotator "RC"]
[PlyCount "105"]
[EventDate "2023.11.11"]
[EventType "team-tourn"]
[EventCountry "ENG"]
[SourceTitle "playchess.com"]
[Source "ChessBase"]
[SourceQuality "1"]
[TimeControl "40/6000+30:3000+30"]

1. e4 {[%emt 0:00:05]} c5 {[%emt 0:00:01]} 2. c4 {[%emt 0:00:43]} Nc6 {[%emt 0:00:10]} 3. Nc3 {[%emt 0:00:26]} g6 {[%emt 0:00:07]} 4. d3 {[%emt 0:01:39]} Bg7 {[%emt 0:00:15]} 5. Nf3 {[%emt 0:01:53]} a6 {[%emt 0:02:26]} 6. Rb1 {[%emt 0:03:31]} Rb8 {[%emt 0:02:03]} 7. a4 {[%emt 0:04:57]} d6 {[%emt 0:00:31]} 8. h3 {[%emt 0:01:31]} Nf6 {[%emt 0:00:06]} 9. Be2 {[%emt 0:01:22]} O-O {[%emt 0:00:07]} 10. O-O {[%emt 0:00:23]} Ne8 {[%emt 0:00:04]} 11. Bd2 {[%emt 0:03:33]} Nc7 {[%emt 0:00:47]} 12. Nd5 {[%emt 0:02:38]} Ne6 {[%emt 0:03:03]} 13. b4 {[%emt 0:03:24]} cxb4 {[%emt 0:02:11]} 14. Nxb4 {[%emt 0:00:33]} Nxb4 {[%emt 0:00:48]} 15. Bxb4 {[%emt 0:02:22]} Bd7 {[%emt 0:01:20]} 16. a5 {[%emt 0:01:59]} f5 {[%emt 0:02:23]} 17. exf5 {[%emt 0:05:04]} Rxf5 {[%emt 0:03:20]} 18. Nd2 {[%emt 0:05:23]} Nf4 {[%emt 0:05:42]} 19. Ne4 {[%emt 0:05:34]} Bc6 {[%emt 0:05:36]} 20. Bd2 {[%emt 0:07:57]} Nxe2+ {[%emt 0:06:45]} 21. Qxe2 {[%emt 0:00:08]} Rxa5 {[%emt 0:03:39]} 22. Bxa5 {[%emt 0:07:34]} Qxa5 {[%emt 0:00:17]} 23. f4 {[%emt 0:01:21]} h6 {[%emt 0:01:23]} 24. Ng3 {[%emt 0:04:53]} Qd8 {[%emt 0:07:42]} 25. Qe6+ {[%emt 0:08:30]} Kh7 {[%emt 0:00:07]} 26. f5 {[%emt 0:02:32]} Qe8 {[%emt 0:00:24]} 27. Rbe1 {[%emt 0:01:53]} Bf6 {[%emt 0:01:14]} 28. Re2 {[%emt 0:05:53]} g5 {[%emt 0:05:44]} 29. Ne4 {[%emt 0:04:16]} Bxe4 {[%emt 0:09:58]} 30. Rxe4 {[%emt 0:00:20]} b5 {[%emt 0:01:20]} 31. Rfe1 {[%emt 0:03:37]} Qf8 {[%emt 0:08:29]} 32. Qd7 {[%emt 0:01:11]} Re8 {[%emt 0:12:13]} 33. cxb5 {[%emt 0:00:47]} axb5 {[%emt 0:00:12]} 34. Qxb5 {[%emt 0:00:39]} Kh8 {[%emt 0:02:07]} 35. Qd7 {[%emt 0:04:27]} Rd8 {[%emt 0:00:26]} 36. Qe6 {[%emt 0:02:07]} Qg7 {[%emt 0:02:19]} 37. Kh1 {[%emt 0:02:05]} h5 {[%emt 0:00:50]} 38. Qb3 {[%emt 0:03:40]} Rg8 {[%emt 0:00:49]} 39. g4 {[%emt 0:01:31]} Qf8 {[%emt 0:02:38]} 40. Kg2 {[%emt 0:02:50]} h4 {[%emt 0:00:58]} 41. Qb7 {[%emt 0:50:24]} Rg7 {[%emt 0:52:08]} 42. Rc1 {[%emt 0:04:02]} Qf7 {[%emt 0:00:33]} 43. Re6 {[%emt 0:00:46]} Rg8 {[%emt 0:01:01]} 44. Rc7 {[%emt 0:00:00]} Rd8 {[%emt 0:00:00]} 45. Rxf6 {[%emt 0:00:00]} Qxf6 {[%emt 0:00:00]} 46. Rxe7 {[%emt 0:00:00]} Kg8 {[%emt 0:00:00]} 47. Re6 {[%emt 0:00:00]} Qc3 {[%emt 0:00:00]} 48. Qd5 {[%emt 0:00:00]} Kh8 {[%emt 0:00:00]} 49. Re2 {[%emt 0:00:00]} Qc5 {[%emt 0:00:00]} 50. Qf7 {[%emt 0:00:00]} Rb8 {[%emt 0:00:00]} 51. f6 {[%emt 0:00:00]} Qc6+ {[%emt 0:00:00]} 52. Kh2 {[%emt 0:00:00]} Qb7 {[%emt 0:00:00]} 53. Re8+ {[%emt 0:00:00]} 1-0

[Event "4NCL 2nd Div 2023-24"]
[Site "Daventry"]
[Date "2024.05.06"]
[Round "11.22"]
[White "Ni, Viktorija"]
[Black "Bucher, Grant W"]
[Result "1-0"]
[ECO "A40"]
[WhiteElo "2143"]
[BlackElo "2049"]
[Annotator "NA RC"]
[PlyCount "75"]
[EventDate "2023.11.11"]
[EventType "team-tourn"]
[EventCountry "ENG"]
[SourceTitle "playchess.com"]
[Source "ChessBase"]
[SourceQuality "1"]
[TimeControl "40/6000+30:3000+30"]

1. d4 {[%emt 0:00:03]} e6 {[%emt 0:00:08]} 2. g3 {[%emt 0:02:14]} c5 {[%emt 0:03:36]} 3. d5 {[%emt 0:03:08]} exd5 {[%emt 0:01:44]} 4. Qxd5 {[%emt 0:01:05]} Nf6 {[%emt 0:00:47]} 5. Qd1 {[%emt 0:04:37]} d5 {[%emt 0:02:13]} 6. Bg2 {[%emt 0:00:31]} Be7 {[%emt 0:01:39]} 7. Nh3 {[%emt 0:06:18]} O-O {[%emt 0:06:07]} 8. Nf4 {[%emt 0:01:45]} d4 {[%emt 0:03:21]} 9. c4 {[%emt 0:01:23]} dxc3 {[%emt 0:15:48]} 10. Qxd8 {[%emt 0:07:52]} Rxd8 {[%emt 0:00:50]} 11. Nxc3 {[%emt 0:00:33]} Nc6 {[%emt 0:01:36]} 12. Bd2 {[%emt 0:10:08]} Bd7 {[%emt 0:08:52]} 13. O-O-O {[%emt 0:06:51]} h6 {[%emt 0:05:37]} 14. h3 $11 {[%emt 0:04:44]} Be8 {[%emt 0:02:48]} 15. Be3 {[%emt 0:07:52]} Rxd1+ {[%emt 0:04:09]} 16. Rxd1 {[%emt 0:00:56]} Rd8 {[%emt 0:00:42]} 17. Rxd8 {[%emt 0:11:11]} Nxd8 {[%emt 0:00:07]} 18. Nd3 {[%emt 0:00:50]} b6 {[%emt 0:04:33]} 19. Ne5 {[%emt 0:07:44]} Bd6 {[%emt 0:02:07]} 20. Nc4 {[%emt 0:01:21]} Bb8 {[%emt 0:01:00]} 21. Bf4 {[%emt 0:04:30]} Bxf4+ {[%emt 0:00:45]} 22. gxf4 {[%emt 0:00:04]} Bc6 {[%emt 0:01:31]} 23. Bxc6 {[%emt 0:10:30]} Nxc6 {[%emt 0:00:06]} 24. Nd6 {[%emt 0:01:03]} Nb4 {[%emt 0:14:34]} 25. a3 {[%emt 0:04:04]} Nbd5 {[%emt 0:01:11]} 26. Nxd5 {[%emt 0:00:49]} Nxd5 {[%emt 0:00:06]} 27. e3 {[%emt 0:00:17]} Ne7 {[%emt 0:07:47]} 28. Kc2 {[%emt 0:00:57]} a6 {[%emt 0:03:02]} 29. Kd3 {[%emt 0:01:23]} Kf8 {[%emt 0:04:59]} 30. Kc4 {[%emt 0:00:50]} g6 {[%emt 0:01:52]} 31. a4 {[%emt 0:01:19]} Nc6 {[%emt 0:01:54]} 32. Nc8 {[%emt 0:00:31]} Na5+ {[%emt 0:00:55]} 33. Kd5 {[%emt 0:00:29]} b5 {[%emt 0:00:21]} 34. axb5 {[%emt 0:00:39]} axb5 {[%emt 0:00:05]} 35. Kxc5 {[%emt 0:00:34]} Nc4 {[%emt 0:00:10]} 36. b4 {[%emt 0:01:18]} Nd2 {[%emt 0:00:42]} 37. Kxb5 {[%emt 0:01:06]} Ne4 {[%emt 0:00:15]} 38. Kc6 {[%emt 0:00:50]} 1-0